[Event "70th RUS-ch Women Higher League 2020"]
[Site "Sochi"]
[Date "2020.10.15"]
[Round "7.18"]
[White "Berezina, Mariya"]
[Black "Mironenko, Galina"]
[Result "0-1"]
[ECO "A21"]
[WhiteElo "1982"]
[BlackElo "2061"]
[Annotator "NA"]
[PlyCount "123"]
[EventDate "2020.10.08"]
[EventType "swiss"]
[EventCountry "RUS"]
[SourceTitle "playchess.com"]
[Source "ChessBase"]
[SourceQuality "1"]
[TimeControl "40/5400+30:1800+30"]

1. c4 {[%emt 0:00:00]} e5 {[%emt 0:00:00]} 2. Nc3 {[%emt 0:00:00]} d6 {[%emt 0:00:00]} 3. Nf3 {[%emt 0:00:04]} f5 {[%emt 0:00:06]} 4. g3 {[%emt 0:02:24]} Nf6 {[%emt 0:01:40]} 5. d4 {[%emt 0:00:31]} e4 {[%emt 0:01:21]} 6. Nh4 {[%emt 0:00:05]} g6 {[%emt 0:04:32]} 7. Bg5 {[%emt 0:01:31]} Bg7 {[%emt 0:04:59]} 8. e3 {[%emt 0:00:40]} c6 {[%emt 0:07:09]} 9. Be2 {[%emt 0:00:38]} O-O {[%emt 0:04:42]} 10. Ng2 {[%emt 0:02:34]} h6 {[%emt 0:07:14]} 11. Bxf6 {[%emt 0:00:07]} Qxf6 {[%emt 0:00:30]} 12. b4 {[%emt 0:06:15]} Na6 {[%emt 0:02:27]} 13. Qb3 $11 {[%emt 0:08:05]} Be6 {[%emt 0:07:43]} 14. Rc1 {[%emt 0:01:08]} Nc7 {[%emt 0:04:30]} 15. O-O {[%emt 0:02:48]} g5 {[%emt 0:07:31]} 16. f3 {[%emt 0:07:32]} exf3 {[%emt 0:06:02]} 17. Bxf3 {[%emt 0:00:16]} Rac8 {[%emt 0:07:33]} 18. a4 {[%emt 0:07:20]} d5 {[%emt 0:04:34]} 19. cxd5 {[%emt 0:04:48]} cxd5 {[%emt 0:00:28]} 20. Ne2 {[%emt 0:02:26]} Qe7 {[%emt 0:03:32]} 21. Ne1 {[%emt 0:01:21]} Kh8 {[%emt 0:05:50]} 22. b5 {[%emt 0:04:33]} Bf7 {[%emt 0:04:52]} 23. Bg2 {[%emt 0:04:00]} Bh5 {[%emt 0:02:22]} 24. Bf3 {[%emt 0:00:21]} Bg6 {[%emt 0:02:06]} 25. Rc5 {[%emt 0:03:52]} b6 {[%emt 0:02:44]} 26. Rc6 {[%emt 0:00:22]} Be8 {[%emt 0:01:16]} 27. Rc3 {[%emt 0:00:30]} Bf7 {[%emt 0:01:54]} 28. Nc2 {[%emt 0:03:51]} h5 {[%emt 0:01:50]} 29. Nb4 {[%emt 0:01:59]} Qd7 {[%emt 0:01:25]} 30. Rfc1 {[%emt 0:02:21]} Be6 {[%emt 0:02:51]} 31. Qc2 {[%emt 0:02:31]} g4 {[%emt 0:00:43]} 32. Bg2 {[%emt 0:00:49]} Bh6 {[%emt 0:00:42]} 33. Nf4 {[%emt 0:02:56]} Bxf4 {[%emt 0:00:18]} 34. gxf4 {[%emt 0:00:35]} Qd6 {[%emt 0:00:51]} 35. Rxc7 {[%emt 0:06:33]} Qxb4 {[%emt 0:00:20]} 36. Qc6 {[%emt 0:00:12]} Rxc7 {[%emt 0:00:26]} 37. Qxc7 {[%emt 0:00:04]} Rf6 {[%emt 0:00:46]} 38. Qe5 {[%emt 0:00:39]} Kg7 {[%emt 0:00:32]} 39. Rc7+ {[%emt 0:00:34]} Kg6 {[%emt 0:00:25]} 40. Rc6 {[%emt 0:00:00]} Qe1+ {[%emt 0:00:00]} 41. Bf1 {[%emt 0:00:52]} g3 {[%emt 0:02:18]} 42. Rc2 {[%emt 0:04:46]} h4 {[%emt 0:02:52]} 43. hxg3 {[%emt 0:00:05]} h3 {[%emt 0:03:43]} 44. Rh2 {[%emt 0:01:39]} Qxg3+ {[%emt 0:02:05]} 45. Kh1 {[%emt 0:00:03]} Qe1 {[%emt 0:01:15]} 46. Kg1 {[%emt 0:00:27]} Kf7 {[%emt 0:03:44]} 47. Qc7+ {[%emt 0:00:08]} Ke8 {[%emt 0:04:45]} 48. Qb8+ {[%emt 0:01:08]} Ke7 {[%emt 0:00:52]} 49. Qc7+ {[%emt 0:00:18]} Bd7 {[%emt 0:01:08]} 50. Qe5+ {[%emt 0:00:12]} Re6 {[%emt 0:07:31]} 51. Qg7+ {[%emt 0:00:11]} Kd6 {[%emt 0:00:39]} 52. Rxh3 {[%emt 0:05:01]} Rxe3 {[%emt 0:01:02]} 53. Qg2 {[%emt 0:04:39]} Re6 {[%emt 0:02:19]} 54. Qf3 {[%emt 0:08:33]} Rg6+ {[%emt 0:01:32]} 55. Kh1 {[%emt 0:00:03]} Qe4 {[%emt 0:01:13]} 56. Qxe4 {[%emt 0:07:04]} dxe4 {[%emt 0:00:50]} 57. Bc4 {[%emt 0:02:45]} Be6 {[%emt 0:00:28]} 58. Rc3 {[%emt 0:02:23]} Bxc4 {[%emt 0:00:30]} 59. Rxc4 {[%emt 0:00:04]} Kd5 {[%emt 0:00:08]} 60. Rc7 {[%emt 0:00:04]} Kxd4 {[%emt 0:00:28]} 61. Rxa7 {[%emt 0:00:05]} e3 {[%emt 0:01:09]} 62. Re7 {[%emt 0:01:52]} 0-1

[Event "70th RUS-ch Women Higher League 2020"]
[Site "Sochi"]
[Date "2020.10.16"]
[Round "8.1"]
[White "Schepetkova, Margarita"]
[Black "Gunina, Valentina"]
[Result "0-1"]
[ECO "D11"]
[WhiteElo "2257"]
[BlackElo "2431"]
[Annotator "ChessBase"]
[PlyCount "80"]
[EventDate "2020.10.08"]
[EventType "swiss"]
[EventCountry "RUS"]
[SourceTitle "playchess.com"]
[Source "ChessBase"]
[SourceQuality "1"]
[TimeControl "40/5400+30:1800+30"]

1. d4 {[%emt 0:00:00]} d5 {[%emt 0:00:00]} 2. c4 {[%emt 0:00:00]} c6 {[%emt 0:00:00]} 3. Nf3 {[%emt 0:00:00]} Nf6 {[%emt 0:00:12]} 4. g3 {[%emt 0:00:20]} h6 {[%emt 0:00:06]} 5. Qc2 {[%emt 0:05:42]} g6 {[%emt 0:03:15]} 6. Bg2 {[%emt 0:03:12]} Bf5 {[%emt 0:00:06]} 7. Qb3 {[%emt 0:00:21]} Qb6 {[%emt 0:01:01]} 8. Nc3 {[%emt 0:04:28]} Qxb3 {[%emt 0:03:41]} 9. axb3 {[%emt 0:00:04]} e6 {[%emt 0:00:45]} 10. Bf4 {[%emt 0:01:22]} Na6 {[%emt 0:07:17]} 11. Be5 {[%emt 0:03:26]} Be7 {[%emt 0:00:25]} 12. Nd2 {[%emt 0:00:11]} O-O {[%emt 0:02:08]} 13. e4 {[%emt 0:17:18]} dxe4 {[%emt 0:03:50]} 14. Ndxe4 {[%emt 0:00:17]} Nxe4 {[%emt 0:00:53]} 15. Bxe4 {[%emt 0:00:50]} Nb4 {[%emt 0:05:10]} 16. O-O {[%emt 0:02:43]} Bh3 {[%emt 0:03:36]} 17. Rfd1 {[%emt 0:01:32]} f6 {[%emt 0:04:28]} 18. Bc7 {[%emt 0:02:53]} g5 {[%emt 0:06:31]} 19. d5 {[%emt 0:02:48]} f5 {[%emt 0:04:13]} 20. Bf3 {[%emt 0:02:15]} f4 {[%emt 0:06:27]} 21. gxf4 {[%emt 0:00:58]} gxf4 {[%emt 0:02:31]} 22. d6 {[%emt 0:02:41]} Bd8 {[%emt 0:07:33]} 23. Bxd8 {[%emt 0:00:42]} Rfxd8 {[%emt 0:00:01]} 24. Ne4 {[%emt 0:01:45]} b6 {[%emt 0:02:44]} 25. d7 {[%emt 0:04:33]} Kf8 {[%emt 0:02:33]} 26. Rd6 {[%emt 0:03:41]} Ke7 {[%emt 0:02:31]} 27. Rad1 {[%emt 0:00:04]} Rg8+ {[%emt 0:01:37]} 28. Kh1 {[%emt 0:00:28]} Rad8 {[%emt 0:00:06]} 29. Nc3 {[%emt 0:04:42]} h5 {[%emt 0:03:33]} 30. Ne2 {[%emt 0:01:06]} e5 {[%emt 0:01:00]} 31. Rh6 {[%emt 0:00:58]} Rxd7 {[%emt 0:02:17]} 32. Rh7+ {[%emt 0:01:03]} Kd8 {[%emt 0:00:02]} 33. Rdxd7+ {[%emt 0:00:22]} Bxd7 {[%emt 0:00:02]} 34. Rxh5 {[%emt 0:00:23]} Nd3 {[%emt 0:00:09]} 35. h4 {[%emt 0:00:57]} Nxf2+ {[%emt 0:01:13]} 36. Kh2 {[%emt 0:00:02]} e4 {[%emt 0:01:14]} 37. Bxe4 {[%emt 0:00:37]} Nxe4 {[%emt 0:00:15]} 38. Nxf4 {[%emt 0:00:03]} Nd2 {[%emt 0:00:10]} 39. Kh1 {[%emt 0:02:27]} Nf3 {[%emt 0:00:16]} 40. Ne2 {[%emt 0:00:00]} Bh3 {[%emt 0:00:00]} 0-1

[Event "70th RUS-ch Women Higher League 2020"]
[Site "Sochi"]
[Date "2020.10.16"]
[Round "8.2"]
[White "Getman, Tatyana"]
[Black "Goltseva, Ekaterina"]
[Result "1/2-1/2"]
[ECO "E12"]
[WhiteElo "2271"]
[BlackElo "2294"]
[Annotator "ChessBase"]
[PlyCount "77"]
[EventDate "2020.10.08"]
[EventType "swiss"]
[EventCountry "RUS"]
[SourceTitle "playchess.com"]
[Source "ChessBase"]
[SourceQuality "1"]
[TimeControl "40/5400+30:1800+30"]

1. d4 {[%emt 0:00:00]} Nf6 {[%emt 0:00:57]} 2. c4 {[%emt 0:00:00]} e6 {[%emt 0:00:04]} 3. Nf3 {[%emt 0:00:00]} b6 {[%emt 0:00:07]} 4. a3 {[%emt 0:00:13]} Ba6 {[%emt 0:00:07]} 5. Qc2 {[%emt 0:00:56]} Bb7 {[%emt 0:00:11]} 6. Nc3 {[%emt 0:00:33]} c5 {[%emt 0:00:07]} 7. e4 {[%emt 0:01:15]} cxd4 {[%emt 0:00:05]} 8. Nxd4 {[%emt 0:00:08]} Bc5 {[%emt 0:00:05]} 9. Nf3 {[%emt 0:03:17]} Ng4 {[%emt 0:02:40]} 10. Bg5 {[%emt 0:03:18]} f6 {[%emt 0:00:23]} 11. Bh4 {[%emt 0:00:07]} Nc6 {[%emt 0:00:11]} 12. b4 {[%emt 0:03:56]} Be7 {[%emt 0:00:12]} 13. Be2 {[%emt 0:01:50]} O-O {[%emt 0:00:37]} 14. O-O {[%emt 0:02:33]} Nge5 {[%emt 0:01:10]} 15. Nxe5 {[%emt 0:02:30]} fxe5 {[%emt 0:03:29]} 16. Bxe7 {[%emt 0:08:04]} Qxe7 {[%emt 0:00:53]} 17. Qd3 {[%emt 0:02:45]} Nd4 {[%emt 0:11:14]} 18. Nb5 {[%emt 0:10:19]} Nxb5 {[%emt 0:08:08]} 19. cxb5 {[%emt 0:00:06]} d5 {[%emt 0:00:37]} 20. Bf3 {[%emt 0:06:15]} Rad8 {[%emt 0:04:32]} 21. Qe3 {[%emt 0:01:19]} Qe8 {[%emt 0:22:05]} 22. Rac1 {[%emt 0:09:20]} Rd7 {[%emt 0:15:51]} 23. Qg5 {[%emt 0:07:22]} Qb8 {[%emt 0:07:10]} 24. Bg4 {[%emt 0:03:06]} Rf6 {[%emt 0:01:31]} 25. exd5 {[%emt 0:03:00]} Bxd5 {[%emt 0:00:17]} 26. f3 {[%emt 0:01:11]} h6 {[%emt 0:05:51]} 27. Qh5 {[%emt 0:03:19]} Rdf7 {[%emt 0:07:36]} 28. Rfe1 {[%emt 0:04:24]} e4 {[%emt 0:00:37]} 29. fxe4 {[%emt 0:00:50]} Qf4 {[%emt 0:00:33]} 30. Bf3 {[%emt 0:01:00]} Bb7 {[%emt 0:01:47]} 31. Qh3 {[%emt 0:02:24]} Qe5 {[%emt 0:00:34]} 32. a4 {[%emt 0:01:25]} Qd4+ {[%emt 0:00:27]} 33. Kh1 {[%emt 0:01:00]} Qxb4 {[%emt 0:03:33]} 34. Qg3 {[%emt 0:04:46]} Kh7 {[%emt 0:00:28]} 35. h3 {[%emt 0:01:24]} Qd2 {[%emt 0:00:51]} 36. Red1 {[%emt 0:01:25]} Qe3 {[%emt 0:00:24]} 37. Re1 {[%emt 0:02:18]} Qd2 {[%emt 0:00:26]} 38. Red1 {[%emt 0:01:50]} Qe3 {[%emt 0:00:09]} 39. Re1 {[%emt 0:00:11]} 1/2-1/2

[Event "70th RUS-ch Women Higher League 2020"]
[Site "Sochi"]
[Date "2020.10.16"]
[Round "8.3"]
[White "Garifullina, Leya"]
[Black "Kovanova, Baira"]
[Result "1/2-1/2"]
[ECO "C95"]
[WhiteElo "2335"]
[BlackElo "2324"]
[Annotator "ChessBase"]
[PlyCount "83"]
[EventDate "2020.10.08"]
[EventType "swiss"]
[EventCountry "RUS"]
[SourceTitle "playchess.com"]
[Source "ChessBase"]
[SourceQuality "1"]
[TimeControl "40/5400+30:1800+30"]

1. e4 {[%emt 0:00:00]} e5 {[%emt 0:00:00]} 2. Nf3 {[%emt 0:00:00]} Nc6 {[%emt 0:00:00]} 3. Bb5 {[%emt 0:00:00]} a6 {[%emt 0:00:00]} 4. Ba4 {[%emt 0:00:00]} Nf6 {[%emt 0:00:03]} 5. O-O {[%emt 0:00:10]} Be7 {[%emt 0:00:03]} 6. Re1 {[%emt 0:00:08]} b5 {[%emt 0:00:06]} 7. Bb3 {[%emt 0:00:11]} d6 {[%emt 0:00:04]} 8. c3 {[%emt 0:00:06]} O-O {[%emt 0:00:05]} 9. h3 {[%emt 0:00:04]} Nb8 {[%emt 0:00:18]} 10. d4 {[%emt 0:00:08]} Nbd7 {[%emt 0:00:04]} 11. Nbd2 {[%emt 0:00:18]} Bb7 {[%emt 0:00:30]} 12. Bc2 {[%emt 0:00:30]} Re8 {[%emt 0:00:30]} 13. Nf1 {[%emt 0:00:30]} Bf8 {[%emt 0:00:30]} 14. Ng3 {[%emt 0:00:30]} g6 {[%emt 0:00:30]} 15. a4 {[%emt 0:00:30]} Bg7 {[%emt 0:00:30]} 16. Bd3 {[%emt 0:00:30]} c6 {[%emt 0:00:30]} 17. Bg5 {[%emt 0:00:30]} Qe7 {[%emt 0:00:30]} 18. Qd2 {[%emt 0:00:30]} Qf8 {[%emt 0:00:30]} 19. b4 {[%emt 0:00:30]} Rab8 {[%emt 0:00:30]} 20. a5 {[%emt 0:00:30]} h6 {[%emt 0:00:30]} 21. Be3 {[%emt 0:00:30]} exd4 {[%emt 0:00:30]} 22. cxd4 {[%emt 0:00:30]} c5 {[%emt 0:00:30]} 23. d5 {[%emt 0:00:30]} cxb4 {[%emt 0:00:30]} 24. Qxb4 {[%emt 0:00:30]} Nc5 {[%emt 0:00:30]} 25. Bc2 {[%emt 0:00:30]} Rbc8 {[%emt 0:00:30]} 26. Rac1 {[%emt 0:00:30]} Nfd7 {[%emt 0:00:30]} 27. Bb1 {[%emt 0:00:30]} h5 {[%emt 0:00:30]} 28. Nd2 {[%emt 0:00:30]} Ne5 {[%emt 0:00:30]} 29. Rc3 {[%emt 0:00:30]} Qe7 {[%emt 0:00:30]} 30. Ra3 {[%emt 0:00:30]} Ncd7 {[%emt 0:00:30]} 31. Ba2 {[%emt 0:00:30]} Nc5 {[%emt 0:00:30]} 32. Bb1 {[%emt 0:00:30]} Ncd7 {[%emt 0:00:30]} 33. Ba2 {[%emt 0:00:30]} Nc5 {[%emt 0:00:30]} 34. Bb1 {[%emt 0:00:30]} Na4 {[%emt 0:00:30]} 35. Rxa4 {[%emt 0:00:30]} bxa4 {[%emt 0:00:30]} 36. f4 {[%emt 0:00:30]} Qh4 {[%emt 0:00:30]} 37. fxe5 {[%emt 0:00:30]} Qxg3 {[%emt 0:00:30]} 38. Nf3 {[%emt 0:00:30]} Ba8 {[%emt 0:00:30]} 39. Bf2 {[%emt 0:00:30]} Qf4 {[%emt 0:00:30]} 40. Be3 {[%emt 0:00:30]} Qg3 {[%emt 0:00:30]} 41. Bf2 {[%emt 0:30:30]} Qf4 {[%emt 0:30:30]} 42. Be3 {[%emt 0:00:30]} 1/2-1/2

[Event "70th RUS-ch Women Higher League 2020"]
[Site "Sochi"]
[Date "2020.10.16"]
[Round "8.4"]
[White "Kovalevskaya, Ekaterina"]
[Black "Shafigullina, Zarina"]
[Result "1/2-1/2"]
[ECO "B50"]
[WhiteElo "2384"]
[BlackElo "2296"]
[Annotator "ChessBase"]
[PlyCount "82"]
[EventDate "2020.10.08"]
[EventType "swiss"]
[EventCountry "RUS"]
[SourceTitle "playchess.com"]
[Source "ChessBase"]
[SourceQuality "1"]
[TimeControl "40/5400+30:1800+30"]

1. e4 {[%emt 0:00:00]} c5 {[%emt 0:00:00]} 2. Nf3 {[%emt 0:00:00]} d6 {[%emt 0:00:00]} 3. c3 {[%emt 0:00:00]} Nf6 {[%emt 0:02:25]} 4. Bd3 {[%emt 0:01:24]} Nc6 {[%emt 0:00:45]} 5. h3 {[%emt 0:01:27]} e5 {[%emt 0:06:33]} 6. Bc2 {[%emt 0:00:40]} d5 {[%emt 0:01:26]} 7. exd5 {[%emt 0:01:07]} Qxd5 {[%emt 0:00:18]} 8. d3 {[%emt 0:14:53]} Bf5 {[%emt 0:02:04]} 9. O-O {[%emt 0:01:42]} O-O-O {[%emt 0:03:02]} 10. Ng5 {[%emt 0:18:02]} h6 {[%emt 0:17:04]} 11. Bb3 {[%emt 0:07:16]} c4 {[%emt 0:00:05]} 12. Bxc4 {[%emt 0:00:05]} Qxc4 {[%emt 0:00:04]} 13. dxc4 {[%emt 0:00:08]} Rxd1 {[%emt 0:00:04]} 14. Rxd1 {[%emt 0:00:07]} hxg5 {[%emt 0:00:02]} 15. Bxg5 {[%emt 0:00:10]} Ne4 {[%emt 0:15:17]} 16. Be3 {[%emt 0:00:31]} Bc5 {[%emt 0:00:26]} 17. Bxc5 {[%emt 0:32:29]} Nxc5 {[%emt 0:00:05]} 18. Na3 {[%emt 0:00:06]} Be6 {[%emt 0:18:33]} 19. b3 {[%emt 0:03:27]} Ne7 {[%emt 0:05:37]} 20. Re1 {[%emt 0:04:04]} Ng6 {[%emt 0:02:23]} 21. Nb5 {[%emt 0:02:52]} a6 {[%emt 0:00:44]} 22. Nd6+ {[%emt 0:00:06]} Kc7 {[%emt 0:00:07]} 23. Ne4 {[%emt 0:01:07]} Nxe4 {[%emt 0:00:22]} 24. Rxe4 {[%emt 0:00:01]} Rd8 {[%emt 0:00:08]} 25. Kf1 {[%emt 0:00:34]} Bf5 {[%emt 0:00:59]} 26. Re3 {[%emt 0:02:14]} Rd2 {[%emt 0:01:05]} 27. h4 {[%emt 0:01:11]} f6 {[%emt 0:02:52]} 28. g3 {[%emt 0:00:07]} Nf8 {[%emt 0:06:11]} 29. Ke1 {[%emt 0:01:31]} Rc2 {[%emt 0:00:05]} 30. Re2 {[%emt 0:01:49]} Rxc3 {[%emt 0:00:11]} 31. Re3 {[%emt 0:00:05]} Rc2 {[%emt 0:08:59]} 32. Re2 {[%emt 0:00:01]} Rxe2+ {[%emt 0:00:29]} 33. Kxe2 {[%emt 0:00:01]} Ne6 {[%emt 0:00:10]} 34. Kd2 {[%emt 0:00:32]} Nd4 {[%emt 0:00:47]} 35. Kc3 {[%emt 0:03:23]} Be4 {[%emt 0:02:54]} 36. b4 {[%emt 0:01:42]} Bf3 {[%emt 0:01:39]} 37. a4 {[%emt 0:01:11]} Kc6 {[%emt 0:01:47]} 38. a5 {[%emt 0:00:40]} Ne2+ {[%emt 0:00:35]} 39. Kd2 {[%emt 0:01:06]} Nd4 {[%emt 0:00:08]} 40. Kc3 {[%emt 0:00:00]} Be2 {[%emt 0:00:00]} 41. Rh1 {[%emt 0:06:02]} Bf3 {[%emt 0:01:50]} 1/2-1/2

[Event "70th RUS-ch Women Higher League 2020"]
[Site "Sochi"]
[Date "2020.10.16"]
[Round "8.5"]
[White "Guseva, Marina"]
[Black "Paramzina, Anastasya"]
[Result "1-0"]
[ECO "D70"]
[WhiteElo "2377"]
[BlackElo "2237"]
[Annotator "ChessBase"]
[PlyCount "103"]
[EventDate "2020.10.08"]
[EventType "swiss"]
[EventCountry "RUS"]
[SourceTitle "playchess.com"]
[Source "ChessBase"]
[SourceQuality "1"]
[TimeControl "40/5400+30:1800+30"]

1. d4 {[%emt 0:00:00]} Nf6 {[%emt 0:02:08]} 2. c4 {[%emt 0:00:00]} g6 {[%emt 0:00:03]} 3. Nf3 {[%emt 0:01:35]} Bg7 {[%emt 0:00:10]} 4. e3 {[%emt 0:00:09]} d6 {[%emt 0:01:01]} 5. Be2 {[%emt 0:00:07]} O-O {[%emt 0:00:36]} 6. Nc3 {[%emt 0:00:11]} Bf5 {[%emt 0:00:08]} 7. O-O {[%emt 0:01:25]} Ne4 {[%emt 0:00:17]} 8. Nxe4 {[%emt 0:00:33]} Bxe4 {[%emt 0:00:05]} 9. b3 {[%emt 0:03:19]} e5 {[%emt 0:02:11]} 10. Bb2 {[%emt 0:04:48]} a5 {[%emt 0:02:39]} 11. Qd2 {[%emt 0:05:22]} Qe7 {[%emt 0:19:34]} 12. Rad1 {[%emt 0:04:23]} Bf5 {[%emt 0:13:06]} 13. Bc3 {[%emt 0:02:16]} e4 {[%emt 0:04:10]} 14. Ne1 {[%emt 0:00:04]} Nc6 {[%emt 0:05:38]} 15. Kh1 {[%emt 0:06:06]} h5 {[%emt 0:02:09]} 16. Nc2 {[%emt 0:02:49]} Bg4 {[%emt 0:06:58]} 17. f3 {[%emt 0:01:57]} Bf5 {[%emt 0:03:34]} 18. f4 {[%emt 0:07:36]} Qf6 {[%emt 0:04:51]} 19. Na3 {[%emt 0:07:21]} Nb4 {[%emt 0:01:56]} 20. Nb5 {[%emt 0:00:40]} Qe7 {[%emt 0:03:49]} 21. a3 {[%emt 0:08:44]} Nd3 {[%emt 0:00:15]} 22. d5 {[%emt 0:00:05]} Bxc3 {[%emt 0:08:02]} 23. Nxc3 {[%emt 0:00:33]} Nc5 {[%emt 0:10:42]} 24. Rb1 {[%emt 0:08:24]} Bd7 {[%emt 0:01:13]} 25. Bd1 {[%emt 0:01:16]} Rfe8 {[%emt 0:00:36]} 26. Bc2 {[%emt 0:01:01]} h4 {[%emt 0:02:30]} 27. h3 {[%emt 0:03:39]} f5 {[%emt 0:01:37]} 28. b4 {[%emt 0:04:59]} axb4 {[%emt 0:00:02]} 29. axb4 {[%emt 0:00:03]} Nd3 {[%emt 0:00:10]} 30. Bxd3 {[%emt 0:00:33]} exd3 {[%emt 0:00:07]} 31. Rfe1 {[%emt 0:00:06]} Ra3 {[%emt 0:01:25]} 32. Qc1 {[%emt 0:01:01]} Rea8 {[%emt 0:00:37]} 33. Rd1 {[%emt 0:00:08]} d2 {[%emt 0:01:48]} 34. Qxd2 {[%emt 0:00:14]} Qg7 {[%emt 0:00:46]} 35. Rdc1 {[%emt 0:01:23]} g5 {[%emt 0:00:37]} 36. fxg5 {[%emt 0:02:37]} Qxg5 {[%emt 0:00:03]} 37. Rf1 {[%emt 0:00:37]} Qg7 {[%emt 0:00:05]} 38. Rbc1 {[%emt 0:01:03]} Rb3 {[%emt 0:00:07]} 39. Nd1 {[%emt 0:20:09]} Raa3 {[%emt 0:01:35]} 40. b5 {[%emt 0:00:00]} Rd3 {[%emt 0:00:00]} 41. Qe2 {[%emt 0:03:39]} b6 {[%emt 0:07:00]} 42. Rc2 {[%emt 0:06:13]} Qe5 {[%emt 0:18:08]} 43. Ra2 {[%emt 0:05:09]} Be8 {[%emt 0:00:43]} 44. Rxa3 {[%emt 0:00:44]} Rxa3 {[%emt 0:00:03]} 45. Rf4 {[%emt 0:00:29]} Qa1 {[%emt 0:03:13]} 46. Rxf5 {[%emt 0:06:06]} Bg6 {[%emt 0:00:07]} 47. Qg4 {[%emt 0:03:25]} Kg7 {[%emt 0:00:07]} 48. Kh2 {[%emt 0:01:17]} Qb1 {[%emt 0:01:49]} 49. Rg5 {[%emt 0:00:12]} Ra1 {[%emt 0:01:26]} 50. e4 {[%emt 0:00:17]} Kf6 {[%emt 0:01:44]} 51. Qf4+ {[%emt 0:02:28]} Kg7 {[%emt 0:00:18]} 52. Qf5 {[%emt 0:00:06]} 1-0

[Event "70th RUS-ch Women Higher League 2020"]
[Site "Sochi"]
[Date "2020.10.16"]
[Round "8.6"]
[White "Bodnaruk, Anastasia"]
[Black "Voit, Daria"]
[Result "1/2-1/2"]
[ECO "C16"]
[WhiteElo "2428"]
[BlackElo "2343"]
[Annotator "ChessBase"]
[PlyCount "23"]
[EventDate "2020.10.08"]
[EventType "swiss"]
[EventCountry "RUS"]
[SourceTitle "playchess.com"]
[Source "ChessBase"]
[SourceQuality "1"]
[TimeControl "40/5400+30:1800+30"]

1. e4 {[%emt 0:00:00]} e6 {[%emt 0:00:28]} 2. d4 {[%emt 0:00:00]} d5 {[%emt 0:00:09]} 3. Nc3 {[%emt 0:00:00]} Bb4 {[%emt 0:00:07]} 4. e5 {[%emt 0:00:00]} Ne7 {[%emt 0:00:16]} 5. a3 {[%emt 0:00:04]} Bxc3+ {[%emt 0:00:06]} 6. bxc3 {[%emt 0:00:02]} b6 {[%emt 0:00:06]} 7. Qg4 {[%emt 0:01:24]} Ng6 {[%emt 0:00:30]} 8. h4 {[%emt 0:00:30]} h5 {[%emt 0:00:30]} 9. Qf3 {[%emt 0:00:30]} Ba6 {[%emt 0:00:30]} 10. Bxa6 {[%emt 0:00:30]} Nxa6 {[%emt 0:00:30]} 11. Bg5 {[%emt 0:00:30]} Qd7 {[%emt 0:00:30]} 12. Ne2 {[%emt 0:00:30]} 1/2-1/2

[Event "70th RUS-ch Women Higher League 2020"]
[Site "Sochi"]
[Date "2020.10.16"]
[Round "8.7"]
[White "Grigorieva, Yulia"]
[Black "Bivol, Alina"]
[Result "1-0"]
[ECO "C18"]
[WhiteElo "2237"]
[BlackElo "2393"]
[Annotator "ChessBase"]
[PlyCount "99"]
[EventDate "2020.10.08"]
[EventType "swiss"]
[EventCountry "RUS"]
[SourceTitle "playchess.com"]
[Source "ChessBase"]
[SourceQuality "1"]
[TimeControl "40/5400+30:1800+30"]

1. e4 {[%emt 0:00:00]} e6 {[%emt 0:00:00]} 2. d4 {[%emt 0:00:00]} d5 {[%emt 0:00:00]} 3. Nc3 {[%emt 0:00:00]} Bb4 {[%emt 0:00:32]} 4. e5 {[%emt 0:00:00]} c5 {[%emt 0:00:10]} 5. a3 {[%emt 0:00:05]} Bxc3+ {[%emt 0:01:51]} 6. bxc3 {[%emt 0:00:07]} Ne7 {[%emt 0:00:04]} 7. Qg4 {[%emt 0:00:22]} O-O {[%emt 0:00:07]} 8. Bd3 {[%emt 0:00:55]} f5 {[%emt 0:00:59]} 9. exf6 {[%emt 0:04:56]} Rxf6 {[%emt 0:00:14]} 10. Qh5 {[%emt 0:01:52]} h6 {[%emt 0:05:20]} 11. Nf3 {[%emt 0:16:47]} c4 {[%emt 0:13:42]} 12. Be2 {[%emt 0:02:46]} Nbc6 {[%emt 0:00:10]} 13. g4 {[%emt 0:05:32]} Rf7 {[%emt 0:10:20]} 14. Be3 {[%emt 0:18:36]} Bd7 {[%emt 0:05:20]} 15. Rg1 {[%emt 0:04:17]} Qe8 {[%emt 0:05:41]} 16. g5 {[%emt 0:05:12]} g6 {[%emt 0:21:03]} 17. gxh6 {[%emt 0:00:50]} Kh8 {[%emt 0:00:05]} 18. Qg5 {[%emt 0:04:35]} Qf8 {[%emt 0:06:30]} 19. Nh4 {[%emt 0:05:06]} Rf6 {[%emt 0:00:21]} 20. Rg2 {[%emt 0:07:35]} Kh7 {[%emt 0:01:43]} 21. Kd2 {[%emt 0:01:57]} Be8 {[%emt 0:00:54]} 22. Rag1 {[%emt 0:03:39]} b5 {[%emt 0:01:56]} 23. Qg4 {[%emt 0:03:03]} e5 {[%emt 0:04:07]} 24. Nf3 {[%emt 0:00:43]} exd4 {[%emt 0:01:16]} 25. cxd4 {[%emt 0:02:26]} Nf5 {[%emt 0:01:01]} 26. h4 {[%emt 0:02:15]} Qxa3 {[%emt 0:04:24]} 27. Bd1 {[%emt 0:04:19]} Nce7 {[%emt 0:03:22]} 28. h5 {[%emt 0:01:04]} Nxe3 {[%emt 0:01:22]} 29. fxe3 {[%emt 0:00:26]} c3+ {[%emt 0:06:17]} 30. Ke1 {[%emt 0:01:38]} a5 {[%emt 0:01:03]} 31. Qg5 {[%emt 0:01:07]} Raa6 {[%emt 0:00:11]} 32. Qe5 {[%emt 0:01:08]} Qd6 {[%emt 0:01:28]} 33. hxg6+ {[%emt 0:01:16]} Bxg6 {[%emt 0:01:03]} 34. Rxg6 {[%emt 0:01:35]} Nxg6 {[%emt 0:01:25]} 35. Ng5+ {[%emt 0:00:32]} Kxh6 {[%emt 0:00:47]} 36. Nf7+ {[%emt 0:00:32]} Kh7 {[%emt 0:02:16]} 37. Qh5+ {[%emt 0:00:19]} Kg7 {[%emt 0:00:01]} 38. Nxd6 {[%emt 0:00:23]} Raxd6 {[%emt 0:00:21]} 39. Bg4 {[%emt 0:00:54]} a4 {[%emt 0:01:23]} 40. Ke2 {[%emt 0:00:00]} b4 {[%emt 0:00:00]} 41. Bf5 {[%emt 0:10:25]} b3 {[%emt 0:01:21]} 42. cxb3 {[%emt 0:02:48]} axb3 {[%emt 0:00:08]} 43. Bxg6 {[%emt 0:01:09]} Rxg6 {[%emt 0:00:04]} 44. Qe5+ {[%emt 0:00:27]} Kh7 {[%emt 0:08:23]} 45. Rh1+ {[%emt 0:05:46]} Rh6 {[%emt 0:00:20]} 46. Rxh6+ {[%emt 0:00:58]} Rxh6 {[%emt 0:00:01]} 47. Qc7+ {[%emt 0:00:13]} Kg8 {[%emt 0:03:34]} 48. Qb8+ {[%emt 0:00:40]} Kg7 {[%emt 0:01:30]} 49. Qxb3 {[%emt 0:00:44]} c2 {[%emt 0:00:58]} 50. Kd2 {[%emt 0:00:29]} 1-0